bitfinex-derivatives/quotes_BTCF0:USTF0_20250514
["timestamp","ask_amount","ask_price","bid_price","bid_amount"]
[1747243356812,1.3798587,102940.0,102930.0,0.19860179]
[1747243357008,2.03160651,102940.0,102930.0,0.19860179]
[1747243357219,1.3798587,102940.0,102930.0,0.3849496]
[1747243357424,1.6122987,102940.0,102930.0,0.19860179]
[1747243357610,1.79864651,102940.0,102930.0,0.20260179]
[1747243357815,1.79864651,102940.0,102930.0,0.20660179]
[1747243358818,1.56620651,102940.0,102930.0,0.20660179]
[1747243359021,1.1143787,102940.0,102930.0,0.20660179]
[1747243359223,1.2843787,102940.0,102930.0,0.40087939]
[1747243359823,1.2843787,102940.0,102930.0,0.5872272]
[1747243360020,1.2843787,102940.0,102930.0,0.1923193]
[1747243360325,1.0222987,102940.0,102930.0,0.3865969]
[1747243360520,1.2542587,102940.0,102930.0,0.3825969]
[1747243360720,1.2542587,102940.0,102930.0,0.3835969]
[1747243361625,1.0210187,102940.0,102930.0,0.3835969]
[1747243362123,0.8810187,102940.0,102930.0,0.3835969]
[1747243362424,0.6490587,102940.0,102930.0,0.3835969]
[1747243362627,0.8808187,102940.0,102930.0,0.19724909]
[1747243362924,0.8808187,102940.0,102930.0,0.3835969]
[1747243363318,1.0308187,102940.0,102930.0,0.1893193]
[1747243363520,1.0308187,102940.0,102930.0,0.00297149]
[1747243363721,1.2308187,102940.0,102930.0,0.00297149]
[1747243364025,1.5916187,102940.0,102930.0,0.00297149]
[1747243364424,1.5916187,102940.0,102930.0,0.1893193]
[1747243364727,1.3816187,102940.0,102930.0,0.00297149]
[1747243365025,1.2716187,102940.0,102930.0,0.00297149]
[1747243365410,1.2416187,102940.0,102930.0,0.00297149]
[1747243365728,1.76796651,102940.0,102930.0,0.00297149]
[1747243366117,1.8316187,102940.0,102920.0,0.01007633]
[1747243366317,0.1943154,102910.0,102900.0,0.105]
[1747243366528,0.1943342,102900.0,102890.0,0.00097186]
[1747243366717,0.1943531,102890.0,102880.0,0.1976303]
[1747243367021,1.1338331,102890.0,102880.0,0.1976303]
[1747243367222,1.1338331,102890.0,102880.0,0.29477898]
[1747243367422,0.8651531,102890.0,102880.0,0.38397811]
[1747243367626,0.2091117,102890.0,102880.0,0.4244023]
[1747243367823,0.2091117,102890.0,102880.0,0.2300303]
[1747243368021,0.5699117,102890.0,102880.0,0.42037811]
[1747243368222,0.7319117,102890.0,102880.0,0.4284023]
[1747243368416,0.7319117,102890.0,102880.0,0.42037811]
[1747243368615,0.8819117,102890.0,102880.0,0.2340303]
[1747243368922,0.8819117,102890.0,102880.0,0.61475011]
[1747243369112,0.7199117,102890.0,102880.0,0.4640023]
[1747243369313,0.7199117,102890.0,102880.0,0.45597811]
[1747243369518,0.7199117,102890.0,102880.0,0.4640023]
[1747243369726,0.7199117,102890.0,102880.0,0.2696303]
[1747243369727,0.7512117,102890.0,102880.0,0.2696303]
[1747243369920,0.7512117,102890.0,102880.0,0.2380303]
[1747243369921,0.9214117,102890.0,102880.0,0.2380303]
[1747243370734,0.9214117,102890.0,102880.0,0.008]
[1747243370920,0.9515117,102890.0,102880.0,0.008]
[1747243371320,1.2436317,102890.0,102880.0,0.008]
[1747243371521,0.9515117,102890.0,102880.0,0.22504781]
[1747243371725,0.9214117,102890.0,102880.0,0.22504781]
[1747243372029,0.7314117,102890.0,102880.0,0.0711]
[1747243372231,0.7314117,102890.0,102880.0,0.25744781]
[1747243372426,0.7314117,102890.0,102880.0,0.25544781]
[1747243373422,1.0114117,102890.0,102880.0,0.28204781]
[1747243373732,1.0114117,102890.0,102880.0,0.0663]
[1747243374126,1.3062917,102890.0,102880.0,0.0663]
[1747243374323,1.3062917,102890.0,102880.0,0.25264781]
[1747243374725,1.3062917,102890.0,102880.0,0.0663]
[1747243375424,0.8114117,102890.0,102880.0,0.28334781]
[1747243375725,1.1054517,102890.0,102880.0,0.28334781]
[1747243375922,1.1054517,102890.0,102880.0,0.097]
[1747243376631,1.3054517,102890.0,102880.0,0.097]
[1747243378429,1.3054517,102890.0,102880.0,0.0663]
[1747243378930,1.49179951,102890.0,102880.0,0.08149456]
[1747243379235,1.52429951,102890.0,102880.0,0.05089456]
[1747243380017,1.52429951,102890.0,102880.0,0.02019456]
[1747243380533,1.62149551,102890.0,102880.0,0.02019456]
[1747243381129,1.62149551,102890.0,102880.0,6e-08]
[1747243381130,1.4351477,102890.0,102880.0,6e-08]
[1747243381334,1.32745551,102890.0,102880.0,6e-08]
[1747243381632,1.88153551,102890.0,102880.0,6e-08]
[1747243382229,1.2536317,102890.0,102880.0,6e-08]
[1747243382422,0.194372,102880.0,102870.0,1e-08]
[1747243382623,1.47799981,102880.0,102870.0,1e-08]
[1747243382821,1.47799981,102880.0,102860.0,0.0656]
[1747243382822,1.51369962,102880.0,102830.0,0.00194486]
[1747243383038,0.74159541,102840.0,102830.0,0.06754486]
[1747243383337,1.1799276,102840.0,102830.0,0.06754486]
[1747243383635,0.9355276,102840.0,102830.0,0.25389267]
[1747243383826,0.9355276,102840.0,102830.0,0.44835917]
[1747243383827,0.9032276,102840.0,102830.0,0.44835917]
[1747243384018,0.0323,102850.0,102840.0,0.1944476]
[1747243384223,1.0259547,102860.0,102850.0,0.1944287]
[1747243384427,0.75317115,102860.0,102850.0,0.0613]
[1747243384740,1.06101115,102860.0,102850.0,0.2557287]
[1747243385539,1.06101115,102860.0,102850.0,0.0613]
[1747243385725,1.27101115,102860.0,102850.0,0.0945]
[1747243385926,0.6441,102860.0,102850.0,0.47527651]
[1747243386233,0.1944098,102860.0,102850.0,0.93426861]
[1747243386423,0.2144098,102860.0,102850.0,0.93426861]
[1747243386623,0.1944098,102860.0,102850.0,0.93426861]
[1747243387042,0.1994098,102860.0,102850.0,0.93526861]
[1747243387527,0.2094098,102860.0,102850.0,0.93526861]
[1747243387733,0.1994098,102860.0,102850.0,0.93526861]
[1747243388130,0.1994098,102860.0,102850.0,0.7489208]
[1747243388434,0.1994098,102860.0,102850.0,0.93526861]
[1747243389331,0.1994098,102860.0,102850.0,0.7489208]
[1747243389537,0.5702098,102860.0,102850.0,0.52586461]
[1747243389932,0.2094098,102860.0,102850.0,0.7081137]
[1747243390232,0.5702098,102860.0,102850.0,0.89447651]
[1747243390537,0.6013098,102860.0,102850.0,0.89447651]
[1747243391337,0.6013098,102860.0,102850.0,0.5137]
[1747243391639,0.7720098,102860.0,102850.0,0.5137]
[1747243391830,0.9420098,102860.0,102850.0,0.5137]
[1747243394139,0.93471445,102860.0,102850.0,0.5137]
[1747243394542,0.93471445,102860.0,102850.0,0.89447651]
[1747243394840,0.64291445,102860.0,102850.0,0.90967467]
[1747243395233,0.70741445,102860.0,102850.0,0.90967467]
[1747243395937,0.70741445,102860.0,102850.0,0.49247467]
[1747243396339,0.64291445,102860.0,102850.0,0.49247467]
[1747243396638,0.19211445,102860.0,102850.0,0.95049891]
[1747243396841,0.19211445,102860.0,102850.0,0.58969891]
[1747243397040,0.19211445,102860.0,102850.0,0.7641511]
[1747243397227,0.19211445,102860.0,102850.0,0.49247467]
[1747243397432,0.58581445,102860.0,102850.0,0.49247467]
[1747243397941,0.57291445,102860.0,102850.0,0.49247467]
[1747243398140,0.57291445,102860.0,102850.0,0.30512686]
[1747243398342,0.57491445,102860.0,102850.0,0.49147467]
[1747243398542,0.58191445,102860.0,102850.0,0.49247467]
[1747243398743,0.58191445,102860.0,102850.0,0.29804597]
[1747243398932,0.58191445,102860.0,102850.0,0.49247467]
[1747243399249,0.56191445,102860.0,102850.0,0.49247467]
[1747243399543,0.20111445,102860.0,102850.0,0.95049891]
[1747243399935,0.20111445,102860.0,102850.0,0.95049691]
[1747243400535,0.19211445,102860.0,102850.0,0.94849691]
[1747243401439,0.19211445,102860.0,102850.0,1.36569691]
[1747243401638,0.005,102860.0,102850.0,1.36569691]
[1747243401842,0.1994098,102860.0,102850.0,1.1793491]
[1747243402142,0.19454743,102860.0,102850.0,1.36569691]
[1747243402735,0.00013763,102860.0,102850.0,1.36569691]
[1747243402931,0.00013763,102860.0,102850.0,1.1793491]
[1747243403138,0.19454743,102860.0,102850.0,1.1793491]
[1747243403334,0.19454743,102860.0,102850.0,1.36569691]
[1747243403535,0.24642679,102880.0,102870.0,0.1943909]
[1747243403732,0.24642679,102880.0,102870.0,0.79793871]
[1747243403926,0.27932679,102880.0,102870.0,0.90543487]
[1747243404131,0.31232679,102880.0,102870.0,0.90543487]
[1747243404333,0.67312679,102880.0,102870.0,0.90543487]
[1747243404529,0.70312679,102880.0,102870.0,0.71908706]
[1747243404747,0.70712679,102880.0,102870.0,0.52569616]
[1747243404942,0.70712679,102880.0,102870.0,0.72008706]
[1747243405243,1.2334746,102880.0,102870.0,0.52569616]
[1747243406031,1.2334746,102880.0,102870.0,0.46389616]
[1747243406240,1.2637746,102880.0,102870.0,0.46389616]
[1747243406439,1.2637746,102880.0,102870.0,0.01619616]
[1747243412251,1.5852546,102880.0,102870.0,0.01619616]
[1747243413953,1.20890679,102880.0,102870.0,0.01619616]
[1747243414261,0.88742679,102880.0,102870.0,0.01619616]
[1747243414451,1.20726679,102880.0,102870.0,0.08079616]
[1747243415437,1.17696679,102880.0,102870.0,0.46153487]
[1747243416045,1.17696679,102880.0,102870.0,0.08079616]
[1747243416955,1.17696679,102880.0,102870.0,0.27518706]
[1747243417544,0.85712679,102880.0,102870.0,0.27518706]
[1747243418059,0.31632679,102880.0,102870.0,0.27518706]
[1747243418247,0.28332679,102880.0,102870.0,0.46153487]
[1747243418447,0.29332679,102880.0,102870.0,0.46153487]
[1747243418655,0.28332679,102880.0,102870.0,0.46153487]
[1747243419052,0.28332679,102880.0,102870.0,0.55874021]
[1747243419753,0.25042679,102880.0,102870.0,0.55874021]
[1747243421259,0.2489673,102880.0,102870.0,0.55874021]
[1747243422159,0.2797673,102880.0,102870.0,0.55874021]
[1747243426263,0.6405673,102880.0,102870.0,0.3723924]
[1747243426464,0.6728673,102880.0,102870.0,0.55874021]
[1747243427159,0.6728673,102880.0,102870.0,0.27518706]
[1747243427463,0.7628673,102880.0,102870.0,0.27518706]
[1747243429277,0.7628673,102880.0,102870.0,0.46153487]
[1747243429467,0.6405673,102880.0,102870.0,0.46153487]
[1747243430870,0.6505673,102880.0,102870.0,0.46153487]
[1747243431171,0.83691511,102880.0,102870.0,0.08079616]
[1747243431364,0.6831673,102880.0,102870.0,0.08079616]
[1747243431565,0.6831673,102880.0,102870.0,0.27518706]
[1747243432266,0.6851673,102880.0,102870.0,0.27518706]
[1747243432466,0.9551673,102880.0,102870.0,0.27518706]
[1747243432768,0.9225673,102880.0,102870.0,0.27518706]
[1747243432961,0.6425673,102880.0,102870.0,0.55874021]
[1747243433168,0.6525673,102880.0,102870.0,0.55874021]
[1747243433775,0.6525673,102880.0,102870.0,0.1780015]
[1747243433960,0.6525673,102880.0,102870.0,0.27518706]
[1747243434166,0.6837673,102880.0,102870.0,0.27518706]
[1747243434769,0.9937673,102880.0,102870.0,0.27518706]
[1747243436470,0.9937673,102880.0,102870.0,0.01619616]
[1747243436666,0.9937673,102880.0,102870.0,0.04759616]
[1747243436866,1.0250673,102880.0,102870.0,0.04759616]
[1747243437269,1.0250673,102880.0,102870.0,0.24198706]
[1747243437469,1.0250673,102880.0,102870.0,0.27238706]
[1747243437771,1.0250673,102880.0,102870.0,0.07799616]
[1747243437972,1.21141511,102880.0,102870.0,0.04759616]
[1747243438758,1.21141511,102880.0,102870.0,0.01619616]
[1747243439572,1.0250673,102880.0,102870.0,0.01619616]
[1747243439772,1.5930273,102880.0,102870.0,6e-08]
[1747243439973,1.87657911,102880.0,102870.0,6e-08]
[1747243440272,2.06292692,102880.0,102870.0,6e-08]
[1747243440588,1.87657911,102880.0,102870.0,6e-08]
[1747243440765,1.4402313,102880.0,102870.0,6e-08]
[1747243440962,1.6835473,102880.0,102870.0,6e-08]
[1747243441167,1.3562673,102880.0,102870.0,6e-08]
[1747243441571,1.54261511,102880.0,102870.0,6e-08]
[1747243441875,1.21141511,102880.0,102870.0,6e-08]
[1747243442069,1.87221511,102880.0,102870.0,6e-08]
[1747243445380,1.87109511,102880.0,102870.0,6e-08]
[1747243446972,1.86973511,102880.0,102870.0,6e-08]
[1747243447472,1.86917511,102880.0,102870.0,6e-08]
[1747243448568,1.21141511,102880.0,102870.0,6e-08]
[1747243448870,0.1944665,102830.0,102820.0,0.35290798]
[1747243449069,0.57002522,102830.0,102820.0,0.15842258]
[1747243449271,0.57002522,102830.0,102820.0,0.19162258]
[1747243449476,0.78837303,102830.0,102820.0,0.19162258]
[1747243449673,1.2147026,102840.0,102820.0,0.47520879]
[1747243449674,0.2916855,102840.0,102820.0,0.47520879]
[1747243449878,0.8011014,102840.0,102830.0,0.2276665]
[1747243450072,0.8011014,102840.0,102830.0,0.2889665]
[1747243450268,0.002,102840.0,102830.0,0.47531431]
[1747243450474,0.1964476,102840.0,102830.0,0.57256692]
[1747243450978,0.1964476,102840.0,102830.0,0.2889665]
[1747243451176,0.5572476,102840.0,102830.0,0.0945]
[1747243451376,0.74359541,102840.0,102830.0,0.0945]
[1747243451576,0.5602476,102840.0,102830.0,0.0945]
[1747243451788,0.5602476,102840.0,102830.0,0.10970035]
[1747243452170,0.5602476,102840.0,102830.0,0.49051466]
[1747243453271,0.5903476,102840.0,102830.0,0.49051466]
[1747243453472,0.5893476,102840.0,102830.0,0.49051466]
[1747243453672,0.5592476,102840.0,102830.0,0.49051466]
[1747243454572,0.5917476,102840.0,102830.0,0.49051466]
[1747243456685,0.80899541,102840.0,102830.0,0.04610035]
[1747243457181,0.85899541,102840.0,102830.0,0.01520035]
[1747243457374,1.11899541,102840.0,102830.0,0.01520035]
[1747243457573,1.13899541,102840.0,102830.0,0.01520035]
[1747243457972,1.13899541,102840.0,102830.0,0.04810035]
[1747243458880,0.89899541,102840.0,102830.0,0.04810035]
[1747243459080,0.90199541,102840.0,102830.0,0.04810035]
[1747243459388,0.90199541,102840.0,102830.0,0.88695781]
[1747243459389,0.2014476,102840.0,102830.0,0.88695781]
[1747243459687,0.2014476,102840.0,102830.0,0.55665781]
[1747243459875,0.2014476,102840.0,102830.0,0.91745781]
[1747243460180,0.5622476,102840.0,102830.0,0.33981]
[1747243460380,0.6036476,102840.0,102830.0,0.27306685]
[1747243460686,0.6342476,102840.0,102830.0,0.45941466]
[1747243461085,0.6322476,102840.0,102830.0,0.45941466]
[1747243461284,0.6322476,102840.0,102830.0,0.27306685]
[1747243461577,0.6322476,102840.0,102830.0,0.45941466]
[1747243461786,0.6322476,102840.0,102830.0,0.26494816]
[1747243462376,0.6322476,102840.0,102830.0,5e-08]
[1747243462377,0.80859541,102840.0,102830.0,5e-08]
[1747243462577,1.29793941,102840.0,102830.0,5e-08]
[1747243463080,1.1135916,102840.0,102830.0,5e-08]
[1747243464487,0.1944665,102830.0,102820.0,0.45240954]
[1747243464688,0.9481065,102830.0,102820.0,0.45450954]
[1747243464879,0.9803065,102830.0,102820.0,0.45450954]
[1747243465487,0.0328,102830.0,102820.0,0.45450954]
[1747243465687,0.1954665,102830.0,102820.0,0.91256215]
[1747243466375,0.1954665,102830.0,102820.0,0.55176215]
[1747243466777,0.1954665,102830.0,102820.0,0.91256215]
[1747243467189,0.3261869,102840.0,102830.0,0.1944665]
[1747243467489,0.1964587,102840.0,102830.0,0.95806212]
[1747243467692,0.1964587,102840.0,102830.0,0.77171431]
[1747243467991,0.1964587,102840.0,102830.0,0.86895746]
[1747243468287,0.1964587,102840.0,102830.0,1.15254927]
[1747243468288,0.002,102840.0,102830.0,1.15254927]
[1747243468494,0.37419868,102860.0,102850.0,0.1944287]
[1747243468686,0.73499868,102860.0,102850.0,0.38077651]
[1747243468890,0.73499868,102860.0,102850.0,0.41187651]
[1747243469079,0.76549868,102860.0,102850.0,0.41187651]
[1747243469286,0.78549868,102860.0,102850.0,0.41187651]
[1747243469688,0.78749868,102860.0,102850.0,0.41187651]
[1747243470294,0.78949868,102860.0,102850.0,0.41187651]
[1747243470595,0.76949868,102860.0,102850.0,0.41187651]
[1747243470891,0.76949868,102860.0,102850.0,0.2255287]
[1747243471091,0.76949868,102860.0,102850.0,0.41187651]
[1747243472490,0.70649868,102860.0,102850.0,0.50910075]
[1747243472789,0.56066938,102860.0,102850.0,0.50910075]
[1747243473191,0.59316938,102860.0,102850.0,0.50910075]
[1747243473496,0.59316938,102860.0,102850.0,0.41187651]
[1747243473696,0.62366938,102860.0,102850.0,0.41187651]
[1747243473897,0.62466938,102860.0,102850.0,0.41187651]
[1747243474391,0.62266938,102860.0,102850.0,0.0311]
[1747243474997,0.62266938,102860.0,102850.0,0.04619967]
[1747243475186,0.62166938,102860.0,102850.0,0.01509967]
[1747243475392,0.73366938,102860.0,102850.0,0.01509967]
[1747243475896,0.62366938,102860.0,102850.0,0.01509967]
[1747243476195,0.1944287,102850.0,102840.0,0.0309]
[1747243476399,0.6195287,102850.0,102840.0,0.0634]
[1747243476795,0.1944476,102840.0,102830.0,0.27561896]
[1747243476999,0.6195476,102840.0,102830.0,0.30811896]
[1747243477904,0.80589541,102840.0,102830.0,0.00194486]
[1747243478204,1.54497541,102840.0,102830.0,0.00194486]
[1747243478393,1.18477006,102840.0,102830.0,0.00194486]
[1747243478698,1.49477006,102840.0,102830.0,0.00194486]
[1747243478896,1.25477006,102840.0,102830.0,0.00294486]
[1747243479198,1.53477006,102840.0,102830.0,0.00494486]
[1747243479392,1.87261006,102840.0,102830.0,0.00394486]
[1747243479593,1.87461006,102840.0,102830.0,0.00394486]
[1747243479793,1.87661006,102840.0,102830.0,0.00194486]
[1747243481811,1.69026225,102840.0,102830.0,0.00194486]
[1747243482008,1.87661006,102840.0,102830.0,0.00194486]
[1747243483593,1.69026225,102840.0,102830.0,0.00194486]
[1747243483793,1.87661006,102840.0,102830.0,0.00194486]
[1747243484005,1.53877006,102840.0,102830.0,0.00194486]
[1747243484308,0.95694225,102840.0,102830.0,0.18829267]
[1747243484501,0.95694225,102840.0,102830.0,0.06454486]
[1747243484701,0.95694225,102840.0,102830.0,0.03354486]
[1747243485496,0.95694225,102840.0,102830.0,0.06454486]
[1747243488409,0.95694225,102840.0,102830.0,0.07974648]
[1747243488811,0.95694225,102840.0,102830.0,0.04874648]
[1747243489009,1.49329006,102840.0,102830.0,0.04874648]
[1747243489199,1.23629006,102840.0,102830.0,0.04874648]
[1747243490107,1.04994225,102840.0,102830.0,0.04874648]
[1747243492306,1.23629006,102840.0,102830.0,0.04874648]
[1747243492511,1.53629006,102840.0,102830.0,0.01714648]
[1747243493098,1.37629006,102840.0,102830.0,0.01714648]
[1747243493301,1.18994225,102840.0,102830.0,0.01714648]
[1747243493503,1.18994225,102840.0,102830.0,0.04774648]
[1747243494214,1.37629006,102840.0,102830.0,0.01714648]
[1747243496714,1.37629006,102840.0,102830.0,0.01733681]
[1747243500121,1.37629006,102840.0,102830.0,1e-08]
[1747243500614,1.18994225,102840.0,102830.0,1e-08]
[1747243500800,1.18994225,102840.0,102830.0,0.03120001]
[1747243501006,1.37629006,102840.0,102830.0,0.03120001]
[1747243501206,1.37829006,102840.0,102830.0,0.03120001]
[1747243503419,0.83534225,102840.0,102830.0,0.03120001]
[1747243503714,1.14258225,102840.0,102830.0,0.06190001]
[1747243504219,0.83534225,102840.0,102830.0,0.06190001]
[1747243504407,0.71784225,102840.0,102830.0,0.80351432]
[1747243504715,0.21024225,102840.0,102830.0,0.80351432]
[1747243504910,0.21024225,102840.0,102830.0,0.90075747]
[1747243505412,0.2004476,102840.0,102830.0,0.90075747]
[1747243505818,0.2004476,102840.0,102830.0,1.15075747]
[1747243506110,0.2004476,102840.0,102830.0,1.24800147]
[1747243506317,0.2004476,102840.0,102830.0,0.99800147]
[1747243507010,0.1984476,102840.0,102830.0,0.99800147]
[1747243507210,0.1994476,102840.0,102830.0,0.99800147]
[1747243507414,0.1974476,102840.0,102830.0,0.99800147]
[1747243507715,0.1974476,102840.0,102830.0,0.90075747]
[1747243508017,0.5582476,102840.0,102830.0,0.53995747]
[1747243508521,0.5582476,102840.0,102830.0,0.35360966]
[1747243508716,0.5910476,102840.0,102830.0,0.35360966]
[1747243509715,1.08739541,102840.0,102830.0,0.03120001]
[1747243509920,1.12029541,102840.0,102830.0,1e-08]
[1747243510810,1.12029541,102840.0,102830.0,0.03330001]
[1747243511622,1.12029541,102840.0,102830.0,1e-08]
[1747243513019,1.30664322,102840.0,102830.0,1e-08]
[1747243513224,0.1945044,102810.0,102800.0,0.23018981]
[1747243513523,0.1945233,102800.0,102790.0,0.20103504]
[1747243513712,1.50969111,102800.0,102790.0,0.20103504]
[1747243514017,1.3233433,102800.0,102790.0,0.20103504]
[1747243514207,1.50969111,102800.0,102790.0,0.20103504]
[1747243514822,1.50969111,102800.0,102780.0,0.25900574]
[1747243514823,0.16093366,102790.0,102780.0,0.25900574]
[1747243515011,0.194599,102760.0,102750.0,0.40254133]
[1747243515220,1.70990681,102760.0,102750.0,0.40254133]
[1747243515414,1.316059,102760.0,102750.0,0.40254133]
[1747243515615,1.546059,102760.0,102750.0,0.40059495]
[1747243515820,0.1946369,102740.0,102730.0,0.39124314]
[1747243516016,1.8481969,102740.0,102730.0,0.34490413]
[1747243516215,1.42258471,102740.0,102730.0,0.34490413]
[1747243516422,1.2362369,102740.0,102730.0,0.34490413]
[1747243516621,0.9162369,102740.0,102730.0,0.40940413]
[1747243516816,1.2243569,102740.0,102730.0,0.40940413]
[1747243517015,1.4543569,102740.0,102730.0,0.40940413]
[1747243517320,1.4543569,102740.0,102730.0,0.41340413]
[1747243517321,1.64170471,102740.0,102730.0,0.41340413]
[1747243517521,1.4553569,102740.0,102730.0,0.41340413]
[1747243517719,1.4553569,102740.0,102730.0,0.38090413]
[1747243517918,1.64170471,102740.0,102730.0,0.38090413]
[1747243518121,1.64170471,102740.0,102730.0,0.34890413]
[1747243518419,1.64270471,102740.0,102730.0,0.35390413]
[1747243518616,1.64270471,102740.0,102730.0,0.32698793]
[1747243518816,0.1946558,102730.0,102720.0,0.35529623]
[1747243519012,1.24222361,102730.0,102720.0,0.41859623]
[1747243519316,0.87760359,102730.0,102720.0,0.41859623]
[1747243519514,1.3471314,102730.0,102720.0,0.41859623]
[1747243519716,1.3471314,102730.0,102720.0,0.38529623]
[1747243519916,1.3481314,102730.0,102720.0,0.29821833]
[1747243520114,0.1946748,102720.0,102710.0,0.38710652]
[1747243520315,0.1946748,102720.0,102710.0,0.12599722]
[1747243520316,1.6582108,102720.0,102710.0,0.12599722]
[1747243520623,0.9493748,102720.0,102710.0,0.04176212]
[1747243520924,1.4965548,102720.0,102710.0,0.07336212]
[1747243521221,1.5604548,102720.0,102710.0,0.0637]
[1747243521426,0.1946937,102710.0,102700.0,0.105]
[1747243521629,0.8493937,102710.0,102700.0,0.105]
[1747243522023,0.5908,102710.0,102700.0,0.29134781]
[1747243522225,0.5554937,102710.0,102700.0,0.20235676]
[1747243522430,0.7393937,102710.0,102700.0,0.105]
[1747243522619,0.7393937,102710.0,102700.0,0.29134781]
[1747243522823,1.1159137,102710.0,102700.0,0.29134781]
[1747243523129,1.1169137,102710.0,102700.0,0.29234781]
[1747243523315,1.1179137,102710.0,102700.0,0.106]
[1747243524614,1.1179137,102710.0,102700.0,0.1667]
[1747243524822,1.4212337,102710.0,102700.0,0.1667]
[1747243525021,1.4209537,102710.0,102700.0,0.1667]
[1747243525419,0.1947127,102700.0,102690.0,0.00097376]
[1747243525618,1.18446051,102700.0,102690.0,0.00097376]
[1747243525820,0.9981127,102700.0,102690.0,0.01619618]
[1747243526025,0.6181127,102700.0,102690.0,0.07689618]
[1747243526335,0.1947506,102680.0,102670.0,0.03314789]
[1747243526626,0.91147912,102680.0,102670.0,0.06354789]
[1747243526817,0.95460453,102680.0,102670.0,0.06354789]
[1747243527020,1.14095234,102680.0,102670.0,0.06354789]
[1747243527221,1.01460453,102680.0,102670.0,0.06354789]
[1747243527622,1.35936453,102680.0,102670.0,0.09394789]
[1747243527819,1.67936453,102680.0,102670.0,0.09394789]
[1747243528124,1.40636453,102680.0,102670.0,0.09394789]
[1747243528322,0.1947696,102670.0,102660.0,7e-05]
[1747243528520,0.6307696,102670.0,102660.0,0.38120641]
[1747243528733,0.6207696,102670.0,102660.0,0.38120641]
[1747243528930,0.6207696,102670.0,102660.0,0.18641781]
[1747243529121,0.6207696,102670.0,102660.0,0.38120641]
[1747243529535,0.6287696,102670.0,102660.0,0.18641781]
[1747243529825,0.5635696,102670.0,102660.0,0.38120641]
[1747243530232,0.3688,102670.0,102660.0,0.56755422]
[1747243530533,0.5635696,102670.0,102660.0,0.66495839]
[1747243530730,0.5635696,102670.0,102660.0,0.47861058]
[1747243530731,0.5695696,102670.0,102660.0,0.47861058]
[1747243531035,0.58433739,102670.0,102660.0,0.28382198]
[1747243531225,0.58433739,102670.0,102660.0,0.47861058]
[1747243531426,0.58433739,102670.0,102660.0,0.57271058]
[1747243531628,0.58433739,102670.0,102660.0,0.38636277]
[1747243531930,0.2087696,102670.0,102660.0,1.46726239]
[1747243532234,0.2087696,102670.0,102660.0,0.38636277]
[1747243532426,0.2087696,102670.0,102660.0,0.75905839]
[1747243532427,0.014,102670.0,102660.0,0.75905839]
[1747243532619,0.014,102670.0,102660.0,0.38636277]
[1747243532827,0.2087696,102670.0,102660.0,0.57271058]
[1747243533029,0.006,102670.0,102660.0,0.75905839]
[1747243533226,0.01,102670.0,102660.0,0.76005839]
[1747243533432,0.2047696,102670.0,102660.0,0.57371058]
[1747243533626,0.2659696,102670.0,102660.0,0.57371058]
[1747243533827,0.6267696,102670.0,102660.0,0.57371058]
[1747243534126,0.6567696,102670.0,102660.0,0.06407]
[1747243534347,0.6267696,102670.0,102660.0,0.28361781]
[1747243534534,0.6467696,102670.0,102660.0,0.47840641]
[1747243535126,0.6467696,102670.0,102660.0,0.2920586]
[1747243535325,0.6467696,102670.0,102660.0,0.47840641]
[1747243535633,0.66112429,102670.0,102660.0,0.47840641]
[1747243536338,0.64112429,102670.0,102660.0,0.47840641]
[1747243536541,0.3708,102670.0,102660.0,0.76215839]
[1747243536736,0.01,102670.0,102660.0,0.76215839]
[1747243537132,0.00269217,102670.0,102660.0,0.76215839]
[1747243538433,0.00269217,102670.0,102660.0,0.57581058]
[1747243538634,0.00269217,102670.0,102660.0,0.40468731]
[1747243538836,0.00269217,102670.0,102660.0,0.59103512]
[1747243539237,0.19746177,102670.0,102660.0,0.59103512]
[1747243539543,0.57826177,102670.0,102660.0,0.59103512]
[1747243539841,0.63936177,102670.0,102660.0,0.49363095]
[1747243540025,0.63936177,102670.0,102660.0,0.30728314]
[1747243540438,0.65405702,102670.0,102660.0,0.30728314]
[1747243541240,1.01497702,102670.0,102660.0,0.30728314]
[1747243541739,1.01497702,102670.0,102660.0,0.49363095]
[1747243542139,1.33497702,102670.0,102660.0,0.01629454]
[1747243542334,1.11497702,102670.0,102660.0,0.21108314]
[1747243542638,0.95918442,102670.0,102660.0,0.21108314]
[1747243542836,0.98850442,102670.0,102660.0,0.24158314]
[1747243543039,0.98850442,102670.0,102660.0,0.45843095]
[1747243543342,0.97875969,102670.0,102660.0,0.49093095]
[1747243543531,0.98875969,102670.0,102660.0,0.49093095]
[1747243544232,0.97875969,102670.0,102660.0,0.49093095]
[1747243544541,0.97875969,102670.0,102660.0,0.49093248]
[1747243544735,0.37549525,102670.0,102660.0,0.67728029]
[1747243544928,0.20946485,102670.0,102660.0,0.77468446]
[1747243545128,0.01469525,102670.0,102660.0,0.77468446]
[1747243545337,0.396,102680.0,102670.0,0.1947696]
[1747243545645,0.002,102680.0,102670.0,0.44631741]
[1747243545942,0.002,102680.0,102670.0,0.9045121]
[1747243546244,0.002,102680.0,102670.0,0.91973817]
[1747243546935,0.2007506,102680.0,102670.0,1.01713417]
[1747243547143,0.19344403,102680.0,102670.0,1.01713417]
[1747243547643,0.19344403,102680.0,102670.0,0.91973817]
[1747243547837,0.004,102680.0,102670.0,0.91973817]
[1747243548036,0.004,102680.0,102670.0,1.26713417]
[1747243548336,0.16968698,102690.0,102680.0,0.1947506]
[1747243548531,0.16968698,102690.0,102680.0,1.44923841]
[1747243548732,0.36441858,102690.0,102680.0,1.56184848]
[1747243548933,0.36441858,102690.0,102680.0,1.40923368]
[1747243549549,0.07272299,102690.0,102680.0,1.40923368]
[1747243549745,0.06298194,102690.0,102680.0,1.40923368]
[1747243550042,0.25971354,102690.0,102680.0,1.04843368]
[1747243550235,0.26171354,102690.0,102680.0,0.95104968]
[1747243550435,0.32421354,102690.0,102680.0,0.95104968]
[1747243551347,0.32421354,102690.0,102680.0,0.58920968]
[1747243551841,0.32421354,102690.0,102680.0,2.08920968]
[1747243552435,0.68501354,102690.0,102680.0,1.99182448]
[1747243552635,0.68501354,102690.0,102680.0,1.90286187]
[1747243552841,0.68501354,102690.0,102680.0,2.08920968]
[1747243553046,0.68501354,102690.0,102680.0,0.58920968]
[1747243553546,1.03493354,102690.0,102680.0,0.58920968]
[1747243553848,0.9719516,102690.0,102680.0,0.58920968]
[1747243554150,0.9713116,102690.0,102680.0,0.58920968]
[1747243554338,0.1987316,102690.0,102680.0,0.58920968]
[1747243554638,0.2603316,102690.0,102680.0,0.58920968]
[1747243555138,0.9689716,102690.0,102680.0,0.40286187]
[1747243555349,0.9689716,102690.0,102680.0,0.14511127]
[1747243555544,0.9689716,102690.0,102680.0,0.01522607]
[1747243555844,1.15503941,102690.0,102680.0,0.01522607]
[1747243556146,1.2986916,102690.0,102680.0,0.01522607]
[1747243557636,1.48503941,102690.0,102680.0,0.01522607]
[1747243559047,1.83287941,102690.0,102680.0,0.01522607]